bitfinex-derivatives/quotes_BTCF0:USTF0_20210105
["timestamp","ask_amount","ask_price","bid_price","bid_amount"]
[1609820463445,0.14327,31020.0,31019.0,4.0084]
[1609820464546,0.15623,31032.0,31019.0,4.0084]
[1609820464745,0.2707,31047.0,31019.0,4.0084]
[1609820464947,0.48350643,31045.0,31019.0,4.0084]
[1609820465147,0.48350643,31045.0,31029.0,0.13632608]
[1609820465347,0.58928643,31045.0,31031.0,0.6998]
[1609820465546,0.58928643,31045.0,31029.0,0.13632608]
[1609820465751,0.10578,31045.0,31035.0,3.981]
[1609820467147,0.13632608,31040.0,31035.0,3.981]
[1609820468650,0.13632608,31040.0,31029.0,0.13632608]
[1609820469649,0.13632608,31040.0,31022.0,0.12066]
[1609820469851,0.13632608,31040.0,31011.0,3.9781]
[1609820470852,0.20178,31045.0,31011.0,3.9781]
[1609820471452,0.13632608,31012.0,31011.0,3.9781]
[1609820471653,0.13632608,31012.0,30999.0,0.01071221]
[1609820473359,0.13632608,31000.0,30999.0,0.01071221]
[1609820473558,0.23812608,31000.0,30999.0,0.01071221]
[1609820473957,0.1018,31000.0,30999.0,0.01071221]
[1609820475461,0.23812608,31000.0,30999.0,0.01071221]
[1609820475661,0.33512608,31000.0,30999.0,0.01071221]
[1609820475866,0.23812608,31000.0,30999.0,0.01071221]
[1609820476062,0.1018,31000.0,30999.0,0.01071221]
[1609820476467,0.09737,31006.0,30999.0,0.01071221]
[1609820477564,0.11707,31013.0,31005.0,0.13632608]
[1609820477764,0.13632608,31029.0,31005.0,0.13632608]
[1609820477964,0.59141021,31045.0,30999.0,0.01071221]
[1609820478164,0.59141021,31045.0,30999.0,0.14066221]
[1609820478367,0.59141021,31045.0,31000.0,4.2148]
[1609820479267,0.10578,31045.0,31000.0,4.2148]
[1609820479467,0.13632608,31029.0,31016.0,0.13632608]
[1609820479667,0.26200608,31029.0,31016.0,0.13632608]
[1609820480068,0.0958,31028.0,31016.0,0.13632608]
[1609820480471,0.0958,31028.0,31017.0,0.0967]
[1609820480872,0.275,31043.0,31016.0,0.26248608]
[1609820481470,0.275,31043.0,31022.0,0.13632608]
[1609820481669,0.72178,31045.0,31009.0,0.14523]
[1609820482071,0.10578,31045.0,31009.0,0.14523]
[1609820482272,0.2714,31049.0,31009.0,0.14523]
[1609820482471,4.4073,31038.0,31009.0,0.14523]
[1609820482674,4.54801,31038.0,31009.0,0.14523]
[1609820483272,4.54801,31038.0,30999.0,0.14066221]
[1609820483475,0.13632608,31011.0,31001.0,0.13632608]
[1609820483674,0.12168,31019.0,31001.0,0.13632608]
[1609820484676,0.0965,31018.0,31001.0,0.13632608]
[1609820485478,0.0965,31018.0,30999.0,0.14066221]
[1609820485479,0.0965,31018.0,31014.0,0.13632608]
[1609820486080,0.1392,31029.0,31014.0,0.13632608]
[1609820486877,0.1392,31029.0,31012.0,0.15792]
[1609820487078,0.0979,31028.0,31013.0,0.097]
[1609820487480,0.1392,31029.0,31022.0,0.13632608]
[1609820488682,0.0955,31028.0,31022.0,0.13632608]
[1609820488881,0.0955,31028.0,31023.0,0.0967]
[1609820489081,0.0955,31028.0,31023.0,0.25569]
[1609820489782,0.13632608,31034.0,31023.0,0.15899]
[1609820490181,0.13632608,31034.0,31024.0,0.098]
[1609820490581,4.2133,31037.0,31024.0,0.098]
[1609820491187,4.2133,31037.0,31012.0,0.15792]
[1609820491585,0.13632608,31015.0,31006.0,0.13632608]
[1609820492988,0.0978,31014.0,31006.0,0.13632608]
[1609820493187,0.0978,31014.0,31007.0,0.0967]
[1609820493488,0.13632608,31015.0,31006.0,0.13632608]
[1609820494088,0.0957,31014.0,31006.0,0.13632608]
[1609820494288,0.13632608,31015.0,31006.0,0.13632608]
[1609820494489,0.13632608,31015.0,30988.0,3.9374]
[1609820494890,0.26974608,31015.0,30988.0,3.9374]
[1609820495089,0.13342,31015.0,30988.0,3.9374]
[1609820495289,0.13342,31015.0,31000.0,0.0969]
[1609820495589,0.13632608,31001.0,31000.0,0.0969]
[1609820495789,0.23392608,31001.0,31000.0,0.0969]
[1609820496292,0.0976,31001.0,30992.0,0.13632608]
[1609820496490,0.13342,31015.0,30992.0,0.13632608]
[1609820497794,0.13632608,31005.0,30992.0,0.13632608]
[1609820497995,0.0972,31014.0,30971.0,2.12196596]
[1609820498195,0.0972,31014.0,31000.0,5.2289]
[1609820499495,0.78009946,31037.0,31000.0,5.2289]
[1609820499694,0.78009946,31037.0,31016.0,0.13632608]
[1609820500496,0.097,31036.0,31016.0,0.13632608]
[1609820501797,0.13632608,31030.0,31016.0,0.13632608]
[1609820501997,0.28244608,31030.0,31016.0,0.13632608]
[1609820502899,0.0969,31029.0,31016.0,0.13632608]
[1609820505602,0.28244608,31030.0,31016.0,0.13632608]
[1609820505801,0.14612,31030.0,31024.0,0.13632608]
[1609820506703,0.0966,31029.0,31024.0,0.13632608]
[1609820507003,0.14612,31030.0,31024.0,0.13632608]
[1609820507204,0.14071,31038.0,31024.0,0.13632608]
[1609820507404,0.70791771,31046.0,31024.0,0.13632608]
[1609820507704,0.13632608,31025.0,31024.0,0.13632608]
[1609820510007,0.14543,31029.0,31024.0,0.13632608]
[1609820511310,0.14543,31029.0,31006.0,0.11788]
[1609820511510,0.14543,31029.0,30999.0,2.27881887]
[1609820512012,0.14543,31029.0,30999.0,0.14066221]
[1609820513114,0.50327831,31038.0,30999.0,0.14066221]
[1609820513314,0.0973,31037.0,30999.0,0.14066221]
[1609820513514,0.21884,31037.0,30999.0,0.14066221]
[1609820513716,0.13632608,31019.0,31005.0,0.13632608]
[1609820515319,0.11077,31021.0,31005.0,0.13632608]
[1609820517019,0.10667,31021.0,31005.0,0.13632608]
[1609820517219,0.12154,31037.0,31012.0,4.5109]
[1609820517419,0.12154,31037.0,31012.0,4.63898]
[1609820518422,0.13632608,31034.0,31026.0,0.13632608]
[1609820522326,0.13632608,31034.0,31032.0,0.13632608]
[1609820530940,0.13632608,31034.0,31027.0,0.15966]
[1609820531142,4.09892608,31034.0,31012.0,0.12808]
[1609820531342,4.09892608,31034.0,31008.0,2.14121656]
[1609820531542,4.07215,31034.0,31008.0,2.14121656]
[1609820532344,0.13632608,31009.0,31005.0,4.42212608]
[1609820532743,0.13632608,31009.0,31005.0,0.13632608]
[1609820532946,0.13632608,31009.0,30999.0,0.14066221]
[1609820533343,0.14427,31019.0,30999.0,0.14066221]
[1609820534345,0.13632608,31000.0,30999.0,0.01071221]
[1609820534951,0.13036,31002.0,30999.0,0.01071221]
[1609820535649,0.14427,31019.0,30999.0,0.01071221]
[1609820536450,0.14427,31019.0,31000.0,0.13632608]
[1609820536451,0.13632608,31010.0,31000.0,0.13632608]
[1609820536749,0.26489608,31010.0,31000.0,0.13632608]
[1609820536949,0.26489608,31010.0,30999.0,0.01071221]
[1609820538350,0.13632608,31000.0,30999.0,0.01071221]
[1609820538751,0.11249,31003.0,30999.0,0.01071221]
[1609820540551,0.13632608,31000.0,30999.0,0.01071221]
[1609820540952,0.13632608,31000.0,30982.0,0.10825]
[1609820541353,4.2003,30994.0,30976.0,2.14542898]
[1609820541553,4.34462,30994.0,30976.0,2.14542898]
[1609820541753,4.34462,30994.0,30967.0,2.14241089]
[1609820542554,0.13632608,30981.0,30971.0,0.13632608]
[1609820542956,0.25152608,30981.0,30971.0,0.13632608]
[1609820543354,0.1152,30981.0,30964.0,2.14241694]
[1609820543555,0.1152,30981.0,30962.0,2.14157569]
[1609820544455,0.13632608,30979.0,30972.0,0.13632608]
[1609820544957,0.1152,30981.0,30972.0,0.13632608]
[1609820545357,0.14432,30994.0,30972.0,0.24682608]
[1609820546557,0.13632608,30997.0,30981.0,0.13632608]
[1609820546958,0.13632608,30997.0,30981.0,0.24652608]
[1609820547157,0.48418334,31002.0,30981.0,0.24652608]
[1609820547158,0.11249,31003.0,30981.0,0.24652608]
[1609820547459,4.11487,31010.0,30981.0,0.24652608]
[1609820548261,4.11487,31010.0,30981.0,0.1102]
[1609820548860,0.13632608,31003.0,30995.0,0.13632608]
[1609820549260,0.12857,31010.0,30995.0,0.13632608]
[1609820549461,0.50140962,31011.0,30991.0,0.12908]
[1609820549662,0.48390219,31020.0,30991.0,0.12908]
[1609820550361,4.0274,31021.0,30991.0,0.12908]
[1609820550764,0.13632608,31015.0,31001.0,0.13632608]
[1609820550963,0.27904608,31015.0,31001.0,0.13632608]
[1609820552969,0.13632608,31011.0,31001.0,0.13632608]
[1609820553970,0.14272,31015.0,31001.0,0.13632608]
[1609820554771,0.2758,31025.0,31001.0,0.13632608]
[1609820554970,0.13632608,31020.0,30999.0,4.75998]
[1609820555171,0.2758,31025.0,30999.0,4.75998]
[1609820555172,0.10454,31022.0,30999.0,4.75998]
[1609820556576,0.2766,31040.0,30999.0,4.75998]
[1609820556777,0.51129516,31042.0,30999.0,4.75998]
[1609820556977,0.13632608,31029.0,31020.0,0.13632608]
[1609820558879,0.13632608,31029.0,31024.0,0.13632608]
[1609820559681,0.13149,31033.0,31024.0,0.13632608]
[1609820561086,0.13632608,31034.0,31024.0,0.13632608]
[1609820562185,0.13632608,31034.0,31024.0,0.28715608]
[1609820568590,0.13632608,31034.0,31024.0,0.13632608]
[1609820568991,0.13262,31038.0,31019.0,4.0327]
[1609820569392,0.13262,31038.0,31024.0,0.13632608]
[1609820569593,0.13262,31038.0,31019.0,4.0327]
[1609820570893,0.13262,31038.0,31010.0,0.11212]
[1609820571394,0.13262,31038.0,31019.0,0.13632608]
[1609820572293,0.01757411,31041.0,31019.0,0.13632608]
[1609820573395,0.13632608,31031.0,31027.0,0.13632608]
[1609820581405,0.13632608,31035.0,31027.0,0.13632608]
[1609820581605,0.13632608,31035.0,31027.0,0.24454608]
[1609820583006,0.11334,31041.0,31027.0,0.24454608]
[1609820583408,0.13632608,31040.0,31033.0,0.13632608]
[1609820584308,0.09875,31049.0,31033.0,0.13632608]
[1609820584507,0.09875,31049.0,31035.0,4.3116]
[1609820585309,0.09875,31049.0,31035.0,4.466]
[1609820585507,0.13632608,31045.0,31043.0,0.13632608]
[1609820587711,0.13632608,31045.0,31035.0,0.1544]
[1609820588111,0.09875,31049.0,31035.0,0.1544]
[1609820588711,0.2906,31055.0,31035.0,0.1544]
[1609820589511,0.13632608,31049.0,31036.0,0.13632608]
[1609820591414,4.6579,31046.0,31036.0,0.13632608]
[1609820591614,4.6579,31046.0,31035.0,0.1544]
[1609820591815,4.6579,31046.0,31027.0,0.10822]
[1609820592017,0.13632608,31037.0,31035.0,0.13632608]
[1609820592215,0.13632608,31037.0,31018.0,4.9501]
[1609820592816,0.09675,31042.0,31018.0,4.9501]
[1609820593115,0.09675,31042.0,31006.0,2.28168061]
[1609820593319,0.09675,31042.0,31023.0,5.08]
[1609820593517,0.09675,31042.0,31023.0,5.17692]
[1609820593719,0.11666,31051.0,31023.0,5.17692]
[1609820594119,0.13632608,31050.0,31046.0,0.13632608]
[1609820594319,0.13632608,31050.0,31047.0,5.3387]
[1609820594519,0.14232,31059.0,31047.0,5.3387]
[1609820596020,0.14232,31059.0,31058.0,0.13632608]
[1609820596222,0.14232,31059.0,31058.0,4.86862608]
[1609820596421,0.0175737,31061.0,31058.0,4.86862608]
[1609820596621,0.2776,31079.0,31058.0,4.86862608]
[1609820596820,0.5446261,31080.0,31058.0,4.86862608]
[1609820597421,0.63223681,31082.0,31058.0,4.86862608]
[1609820597422,0.54504061,31082.0,31058.0,4.86862608]
[1609820597922,0.54504061,31082.0,31058.0,0.13632608]
[1609820598121,0.54504061,31082.0,31065.0,0.13632608]
[1609820598325,0.54504061,31082.0,31057.0,0.15847]
[1609820598522,0.2756,31083.0,31057.0,0.15847]
[1609820598721,0.14341,31082.0,31057.0,0.15847]
[1609820600022,0.14341,31082.0,31071.0,0.13632608]
[1609820600023,0.13632608,31077.0,31071.0,0.13632608]
[1609820600724,0.14341,31082.0,31057.0,0.15847]
[1609820601126,0.14341,31082.0,31063.0,5.2495]
[1609820601327,0.14341,31082.0,31057.0,0.15847]
[1609820601527,0.14341,31082.0,31066.0,3.8044]
[1609820601727,0.14341,31082.0,31066.0,0.14172]
[1609820602126,0.14341,31082.0,31081.0,0.13632608]
[1609820602328,0.14341,31082.0,31081.0,0.72152608]
[1609820602527,0.13632608,31087.0,31081.0,0.72152608]
[1609820602729,0.01782428,31097.0,31081.0,0.13632608]
[1609820602929,0.01782428,31097.0,31091.0,4.0368]
[1609820603532,0.54778689,31100.0,31091.0,4.0368]
[1609820604130,0.13632608,31097.0,31094.0,0.13632608]
[1609820605130,0.13632608,31097.0,31085.0,0.12206]
[1609820605729,0.13632608,31097.0,31076.0,0.13174]
[1609820605929,0.13632608,31097.0,31075.0,5.1256]
[1609820606132,0.11055,31098.0,31085.0,0.13632608]
[1609820606731,0.11055,31098.0,31085.0,5.34802608]
[1609820607332,0.11055,31098.0,31085.0,5.2117]
[1609820608134,0.13632608,31096.0,31085.0,5.34802608]
[1609820608836,0.13632608,31096.0,31085.0,5.2117]
[1609820610137,0.13632608,31096.0,31095.0,0.13632608]
[1609820611239,0.13632608,31096.0,31080.0,5.0934]
[1609820611837,0.13632608,31096.0,31075.0,0.15581]
[1609820612137,5.2239,31090.0,31075.0,0.15581]
[1609820612939,5.2239,31090.0,31066.0,0.14172]
[1609820613140,5.2239,31090.0,31058.0,4.785]
[1609820613340,0.13632608,31073.0,31060.0,0.13632608]
[1609820613541,5.2239,31090.0,31058.0,4.785]
[1609820613743,5.37465,31090.0,31058.0,4.785]
[1609820615239,0.13632608,31081.0,31070.0,0.13632608]
[1609820615641,0.15075,31090.0,31066.0,3.819]
[1609820615841,0.15075,31090.0,31066.0,0.10952]
[1609820616043,0.15075,31090.0,31071.0,4.2062]
[1609820616841,0.15075,31090.0,31066.0,0.10952]
[1609820617342,0.13632608,31082.0,31076.0,0.13632608]
[1609820617941,0.15075,31090.0,31076.0,0.13632608]
[1609820618141,0.11055,31098.0,31076.0,0.24619608]
[1609820618342,0.56058179,31102.0,31076.0,0.24619608]
[1609820619242,0.56058179,31102.0,31076.0,0.10987]
[1609820619943,0.26958179,31102.0,31095.0,4.7309]
[1609820620143,0.26958179,31102.0,31095.0,4.83531]
[1609820620343,0.26958179,31102.0,31101.0,4.3825]
[1609820620542,0.02418745,31124.0,31101.0,4.51882608]
[1609820620742,0.02418745,31124.0,31101.0,4.3825]
[1609820621142,0.02418745,31124.0,31100.0,5.1474]
[1609820621944,0.64893951,31111.0,31100.0,5.1474]
[1609820622645,0.64893951,31111.0,31110.0,0.13632608]
[1609820622846,0.00930889,31153.0,31110.0,0.29609608]
[1609820623245,0.48191238,31148.0,31110.0,0.29609608]
[1609820623648,0.00931533,31156.0,31110.0,0.15977]
[1609820624050,0.00931533,31156.0,31123.0,3.8057]
[1609820624249,0.00931014,31155.0,31123.0,3.8057]
[1609820624649,0.00931548,31157.0,31123.0,3.8057]
[1609820625049,0.13632608,31139.0,31123.0,3.94202608]
[1609820625652,0.00929735,31162.0,31123.0,3.8057]
[1609820625853,0.91168714,31171.0,31123.0,3.8057]
[1609820625854,0.00925172,31166.0,31123.0,3.8057]
[1609820626656,0.00925348,31167.0,31123.0,3.8057]
[1609820627454,0.13632608,31140.0,31123.0,3.94202608]
[1609820627655,0.798521,31172.0,31123.0,3.94202608]
[1609820627656,0.00924182,31169.0,31123.0,3.94202608]
[1609820627854,0.00924182,31169.0,31123.0,0.13632608]
[1609820628055,0.00924182,31169.0,31139.0,3.6748]
[1609820628355,0.00924182,31169.0,31139.0,3.82628]
[1609820628557,0.0092384,31171.0,31139.0,3.82628]
[1609820629457,0.0092384,31171.0,31154.0,0.13632608]
[1609820629657,0.0092384,31171.0,31156.0,0.6608]
[1609820630257,0.2717,31177.0,31152.0,0.10261]
[1609820630457,4.0235,31175.0,31152.0,0.10261]
[1609820630658,4.12462,31175.0,31139.0,0.15148]
[1609820630857,0.10112,31175.0,31139.0,0.15148]
[1609820631058,5.0942,31161.0,31120.0,4.1997]
[1609820631260,5.19351,31161.0,31120.0,4.1997]
[1609820631460,0.13632608,31121.0,31120.0,4.1997]
[1609820631660,0.13632608,31121.0,31119.0,0.10287]
[1609820631861,0.09772,31138.0,31113.0,4.9744]
[1609820632259,0.09772,31138.0,31092.0,2.0786614]
[1609820632459,0.09772,31138.0,31101.0,4.9449]
[1609820632659,0.09772,31138.0,31092.0,2.0786614]
[1609820633361,0.09772,31138.0,31112.0,0.13632608]
[1609820634361,0.09772,31138.0,31115.0,5.1495]
[1609820634559,0.09772,31138.0,31115.0,5.28576]
[1609820634761,0.00910156,31159.0,31115.0,5.28576]
[1609820635160,0.00909439,31160.0,31115.0,5.28576]
[1609820635361,0.13632608,31131.0,31130.0,0.13632608]
[1609820635761,0.48184005,31152.0,31115.0,5.28576]
[1609820637362,0.48184005,31152.0,31141.0,0.13632608]
[1609820637563,0.48184005,31152.0,31141.0,0.26444608]
[1609820637763,0.09931,31161.0,31141.0,0.26444608]
[1609820637962,0.00914499,31174.0,31141.0,0.26444608]
[1609820638864,0.00914499,31174.0,31145.0,4.2131]
[1609820639468,0.13632608,31146.0,31145.0,4.34942608]
[1609820639665,0.13632608,31146.0,31145.0,4.2131]
[1609820640567,0.09741,31165.0,31145.0,4.2131]
[1609820641366,0.09741,31165.0,31141.0,0.12812]
[1609820641567,0.13632608,31145.0,31141.0,0.12812]
[1609820641969,0.09741,31165.0,31141.0,0.12812]
[1609820642169,0.1273,31158.0,31141.0,0.12812]
[1609820642569,0.1273,31158.0,31115.0,0.13626]
[1609820642768,0.1273,31158.0,31106.0,0.10141]
[1609820642968,0.1273,31158.0,31134.0,4.7693]
[1609820643168,0.1273,31158.0,31134.0,4.90914]
[1609820643472,0.1273,31158.0,31147.0,0.13632608]
[1609820643872,0.1273,31158.0,31134.0,4.90914]
[1609820645472,0.13632608,31144.0,31143.0,0.13632608]
[1609820645874,0.1273,31158.0,31134.0,4.90914]
[1609820647178,0.09741,31165.0,31134.0,4.90914]
[1609820647575,0.13632608,31143.0,31142.0,0.13632608]
[1609820648178,0.10389,31162.0,31134.0,0.13984]
[1609820648381,0.10389,31162.0,31144.0,5.331]
[1609820648579,0.10389,31162.0,31144.0,5.45432]
[1609820649081,0.00912716,31174.0,31144.0,5.45432]
[1609820649682,0.00912716,31174.0,31167.0,0.13632608]
[1609820650083,0.00912716,31174.0,31171.0,3.6038]
[1609820651783,0.00912716,31174.0,31173.0,0.13632608]
[1609820652486,0.91614894,31177.0,31173.0,0.13632608]
[1609820652487,0.2717,31177.0,31173.0,0.13632608]
[1609820653487,0.02402402,31179.0,31173.0,0.13632608]
[1609820653888,0.02402402,31179.0,31178.0,4.1763]
[1609820654287,0.02402402,31179.0,31178.0,4.31262608]
[1609820655589,0.02402402,31179.0,31178.0,4.1763]
[1609820655992,0.02402402,31179.0,31176.0,0.13167]
[1609820656390,0.13632608,31177.0,31176.0,0.13167]
[1609820656589,0.02402402,31179.0,31176.0,0.13167]
[1609820656991,0.02402402,31179.0,31169.0,0.14688]
[1609820657189,0.02402402,31179.0,31161.0,0.14398]
[1609820657392,0.02402402,31179.0,31159.0,4.6865]
[1609820658389,0.13632608,31160.0,31159.0,4.6865]
[1609820658590,0.13632608,31160.0,31144.0,0.12332]
[1609820658789,0.13632608,31160.0,31144.0,5.1766]
[1609820660191,0.2991,31178.0,31130.0,2.07737552]
[1609820660392,0.2991,31178.0,31130.0,2.20949552]
[1609820661894,0.02402402,31179.0,31130.0,2.20949552]
[1609820662295,0.13632608,31167.0,31166.0,0.13632608]
[1609820662696,0.13632608,31167.0,31150.0,3.5999]
[1609820662896,0.13632608,31167.0,31130.0,2.20949552]
[1609820664402,0.02402402,31179.0,31161.0,0.13632608]
[1609820664603,0.02402402,31179.0,31161.0,0.23687608]
[1609820665603,0.02402402,31179.0,31161.0,0.10055]
[1609820666304,0.02402402,31179.0,31162.0,0.13632608]
[1609820667104,0.02402402,31179.0,31161.0,0.10055]
[1609820668405,0.13632608,31162.0,31161.0,0.10055]
[1609820669606,0.13632608,31162.0,31147.0,4.9642]
[1609820669805,0.02402402,31179.0,31147.0,4.9642]
[1609820670107,0.02402402,31179.0,31147.0,5.09619]
[1609820670308,0.02402402,31179.0,31147.0,0.13199]
[1609820670509,0.02402402,31179.0,31173.0,0.13632608]
[1609820670909,0.02402402,31179.0,31173.0,0.26026608]
[1609820671508,0.02402402,31179.0,31175.0,4.3759]
[1609820672510,0.02402402,31179.0,31178.0,0.13632608]
[1609820673311,0.02402402,31179.0,31175.0,4.6812]
[1609820674513,0.02402402,31179.0,31178.0,0.13632608]
[1609820675514,0.10001,31200.0,31178.0,0.13632608]
[1609820675718,0.00952017,31210.0,31178.0,0.13632608]
[1609820676118,0.00952017,31210.0,31187.0,5.0483]
[1609820676318,0.00952017,31210.0,31187.0,5.16395]
[1609820676520,0.13632608,31203.0,31195.0,0.13632608]
[1609820677220,0.13632608,31203.0,31187.0,5.16395]
[1609820677221,0.00960522,31214.0,31187.0,5.16395]
[1609820678722,0.28056608,31213.0,31205.0,0.13632608]
[1609820679624,0.28056608,31213.0,31205.0,4.47292608]
[1609820679826,0.14424,31213.0,31195.0,0.15716]
[1609820680226,0.14424,31213.0,31187.0,0.11565]
[1609820681024,0.13632608,31189.0,31187.0,0.11565]
[1609820681225,0.14424,31213.0,31187.0,0.11565]
[1609820681425,0.14424,31213.0,31187.0,0.11767]
[1609820681924,4.3224,31221.0,31187.0,0.11767]
[1609820682324,0.00964232,31223.0,31187.0,0.11767]
[1609820682924,0.13632608,31196.0,31187.0,0.11767]
[1609820683326,0.10562,31213.0,31187.0,0.11767]
[1609820683529,0.10956787,31213.0,31187.0,0.11767]
[1609820684326,0.10562,31213.0,31187.0,0.11767]
[1609820684929,0.13632608,31212.0,31192.0,0.13632608]
[1609820685532,0.01364805,31217.0,31187.0,0.11767]
[1609820686432,0.01364805,31217.0,31186.0,5.1424]
[1609820686632,0.01364805,31217.0,31187.0,0.1261]
[1609820686934,0.13632608,31213.0,31207.0,0.13632608]
[1609820687133,0.56885839,31219.0,31207.0,0.13632608]
[1609820687333,0.56885839,31219.0,31207.0,0.1216]
[1609820687736,0.56883572,31223.0,31207.0,0.1216]
[1609820688438,0.57255561,31240.0,31207.0,0.1216]
[1609820689436,0.57239362,31239.0,31207.0,0.1216]
[1609820689636,0.13632608,31216.0,31213.0,0.13632608]
[1609820690237,0.13632608,31216.0,31207.0,0.1216]
[1609820690636,0.12536,31231.0,31207.0,0.1216]
[1609820692442,0.12536,31231.0,31187.0,0.1261]
[1609820692640,0.12536,31231.0,31206.0,4.6867]
[1609820692843,0.12536,31231.0,31206.0,4.82488]
[1609820693241,0.57111759,31238.0,31206.0,4.82488]
[1609820694042,0.57111759,31238.0,31225.0,0.13632608]
[1609820694243,0.57111759,31238.0,31224.0,0.11522]
[1609820694445,0.15288,31241.0,31224.0,0.11522]
[1609820696045,0.13632608,31230.0,31228.0,0.13632608]
[1609820697045,0.13632608,31230.0,31224.0,0.11522]
[1609820698047,0.13632608,31230.0,31229.0,0.13632608]
[1609820698850,0.15288,31241.0,31224.0,0.11522]
[1609820699550,0.57113078,31250.0,31223.0,4.5216]
[1609820699750,0.57113078,31250.0,31223.0,4.63571]
[1609820700552,0.57001684,31252.0,31223.0,4.63571]
[1609820701354,0.57002446,31255.0,31223.0,4.63571]
[1609820702152,0.57002446,31255.0,31223.0,0.11411]
[1609820702353,0.13632608,31224.0,31223.0,0.11411]
[1609820702955,0.13632608,31224.0,31206.0,0.13818]
[1609820703155,0.13632608,31224.0,31205.0,3.6875]
[1609820703355,0.13112,31232.0,31205.0,3.6875]
[1609820703557,0.13112,31232.0,31205.0,3.8006]
[1609820704059,0.13637,31240.0,31205.0,3.8006]
[1609820704457,0.13632608,31225.0,31222.0,0.13632608]
[1609820704658,0.13637,31240.0,31205.0,0.1131]
[1609820704858,0.57019835,31248.0,31209.0,5.0878]
[1609820705462,0.57019835,31248.0,31205.0,0.1131]
[1609820705862,0.57019835,31248.0,31213.0,5.2897]
[1609820706062,0.57019835,31248.0,31213.0,0.11337]
[1609820706566,0.57019835,31248.0,31214.0,4.224]
[1609820706765,0.66579835,31248.0,31214.0,4.224]
[1609820706964,0.66579835,31248.0,31230.0,0.13632608]
[1609820707165,0.15824,31250.0,31230.0,0.13632608]
[1609820707166,0.56976919,31243.0,31230.0,0.24409608]
[1609820707366,0.56976919,31243.0,31232.0,4.9996]
[1609820708167,0.15824,31250.0,31232.0,4.9996]
[1609820708968,0.13632608,31241.0,31235.0,0.13632608]
[1609820710870,0.13632608,31241.0,31240.0,0.13632608]
[1609820711071,0.13632608,31241.0,31240.0,0.77532608]
[1609820711471,0.15824,31250.0,31240.0,0.639]
[1609820711670,0.57261365,31256.0,31240.0,0.639]
[1609820712471,0.57261365,31256.0,31238.0,0.13235]
[1609820712671,0.69597365,31256.0,31238.0,0.13235]
[1609820712872,0.12336,31256.0,31238.0,0.13235]
[1609820714275,0.75016,31256.0,31230.0,0.10777]
[1609820714478,0.12336,31256.0,31214.0,0.284]
[1609820714677,5.201,31247.0,31213.0,0.11337]
[1609820714877,5.3124,31247.0,31203.0,4.6882]
[1609820715079,0.13632608,31207.0,31203.0,4.6882]
[1609820715281,0.13632608,31207.0,31190.0,0.2774]
[1609820715681,0.15744,31217.0,31190.0,0.2774]
[1609820715879,0.15744,31217.0,31190.0,0.41175]
[1609820717382,0.13632608,31214.0,31213.0,0.13632608]
[1609820717581,0.13632608,31214.0,31190.0,0.41175]
[1609820719384,0.1567,31224.0,31190.0,0.41175]
[1609820719983,0.1567,31224.0,31205.0,0.13632608]
[1609820720381,0.57398118,31237.0,31205.0,0.13632608]
[1609820721984,0.13632608,31206.0,31205.0,0.13632608]
[1609820722987,0.13632608,31206.0,31203.0,0.09838]
[1609820723389,0.14645,31220.0,31203.0,0.09838]
[1609820723890,0.13632608,31204.0,31203.0,0.09838]
[1609820725493,0.13632608,31204.0,31190.0,0.41175]
[1609820725893,0.2916,31219.0,31196.0,0.13632608]
[1609820727897,0.13632608,31197.0,31196.0,0.13632608]
[1609820729198,0.2916,31219.0,31196.0,0.13632608]
[1609820729499,0.2916,31219.0,31190.0,0.41175]
[1609820730000,0.2916,31219.0,31199.0,0.13632608]
[1609820730398,0.2916,31219.0,31190.0,0.41175]
[1609820732002,0.13632608,31198.0,31197.0,0.13632608]
[1609820733706,0.2916,31219.0,31197.0,0.13632608]
[1609820733908,0.2916,31219.0,31197.0,0.23360608]
[1609820734108,0.13632608,31207.0,31197.0,0.09728]
[1609820734307,0.2916,31219.0,31197.0,0.09728]
[1609820735809,0.6753,31214.0,31197.0,0.09728]
[1609820736512,0.13632608,31204.0,31203.0,0.13632608]
[1609820737114,0.13632608,31204.0,31197.0,0.09728]
[1609820737115,0.6753,31214.0,31197.0,0.09728]
[1609820738617,0.6753,31214.0,31207.0,0.13632608]
[1609820738817,0.2916,31219.0,31207.0,0.13632608]
[1609820739017,0.2916,31219.0,31197.0,0.09728]
[1609820739217,0.2916,31219.0,31193.0,3.9222]
[1609820740821,0.01951649,31215.0,31193.0,3.9222]
[1609820741019,0.01951649,31215.0,31190.0,0.41175]
[1609820742629,0.01951649,31215.0,31194.0,0.13632608]
[1609820743223,0.59977824,31218.0,31194.0,0.13632608]
[1609820743626,0.59977824,31218.0,31190.0,0.41175]
[1609820743925,0.01952917,31215.0,31190.0,0.13435]
[1609820744125,0.01952917,31215.0,31174.0,2.01478614]
[1609820744327,4.6318,31205.0,31174.0,2.01478614]
[1609820744525,4.6318,31205.0,31171.0,2.01701618]
[1609820744725,4.6318,31205.0,31176.0,0.13632608]
[1609820744925,4.6318,31205.0,31176.0,0.14205]
[1609820745327,0.01953384,31204.0,31176.0,0.14205]
[1609820746628,0.13632608,31184.0,31178.0,0.13632608]
[1609820747728,0.13632608,31184.0,31176.0,0.14205]
[1609820748631,0.13632608,31177.0,31176.0,0.14205]
[1609820749929,0.13632608,31177.0,31165.0,0.2785]
[1609820750329,0.13632608,31177.0,31156.0,2.02556242]
[1609820750731,0.13632608,31166.0,31156.0,2.02556242]
[1609820751731,3.7185,31191.0,31156.0,2.02556242]
[1609820752133,3.7185,31191.0,31158.0,0.14236221]
[1609820752332,0.01953796,31197.0,31158.0,0.14236221]
[1609820752533,0.01953796,31197.0,31159.0,4.6945]
[1609820752733,0.13632608,31184.0,31175.0,0.13632608]
[1609820752933,0.01953796,31197.0,31175.0,0.13632608]
[1609820753133,0.01948118,31199.0,31175.0,0.26216608]
[1609820753835,0.59830015,31204.0,31175.0,0.12584]
[1609820754032,0.6533,31201.0,31175.0,0.12584]
[1609820755334,0.13632608,31180.0,31175.0,0.12584]
[1609820757839,0.01948044,31202.0,31175.0,0.12584]
[1609820758040,0.01948044,31202.0,31172.0,0.13632608]
[1609820758240,0.01948044,31202.0,31175.0,0.10807]
[1609820761345,0.01948044,31202.0,31201.0,0.13632608]